bitfinex-derivatives/quotes_ETHF0:USTF0_20250911
["timestamp","ask_amount","ask_price","bid_price","bid_amount"]
[1757581904352,0.1249,4424.0,4423.2,0.214]
[1757581904557,0.7129,4423.3,4422.9,0.3167]
[1757581904861,0.5326,4423.0,4422.9,0.5307]
[1757581905053,0.8378,4423.0,4422.9,0.5307]
[1757581905350,0.7129,4423.0,4422.9,0.7371]
[1757581905557,0.8378,4423.0,4422.8,0.1718349]
[1757581905858,0.8378,4423.0,4422.9,0.5307]
[1757581906750,0.8378,4423.0,4422.9,0.7371]
[1757581907155,0.8378,4423.0,4422.0,0.03935243]
[1757581907156,0.22610001,4422.9,4422.0,0.03935243]
[1757581907357,4.8378,4423.0,4422.0,0.03935243]
[1757581907358,0.83220768,4422.8,4422.7,0.7371]
[1757581907661,0.6387,4423.7,4423.6,0.214]
[1757581907853,0.4077,4423.7,4423.6,0.7371]
[1757581908255,0.7129,4423.7,4423.6,0.7371]
[1757581909758,0.7129,4423.7,4423.6,1.14391]
[1757581910064,0.4077,4423.7,4423.6,1.14391]
[1757581910262,0.2011,4423.7,4423.6,1.14391]
[1757581910654,0.2011,4423.7,4423.5,0.1265]
[1757581910655,0.3052,4424.4,4423.9,0.3167]
[1757581910856,0.3052,4424.4,4423.5,0.1265]
[1757581910857,0.2011,4424.4,4424.3,0.7371]
[1757581911051,0.3052,4424.8,4424.3,0.7371]
[1757581911254,1.03929648,4424.7,4424.6,0.4204]
[1757581911460,1.03929648,4424.7,4424.6,0.7371]
[1757581911461,1.34449648,4424.7,4424.6,0.7371]
[1757581913253,0.7129,4424.7,4424.6,0.7371]
[1757581916563,0.4077,4424.7,4424.6,0.7371]
[1757581916764,0.2011,4424.7,4424.6,0.7371]
[1757581916961,0.5063,4425.0,4424.9,0.7371]
[1757581917157,32.561,4425.8,4424.9,0.7371]
[1757581917158,0.6981,4425.4,4425.3,0.2008]
[1757581917365,0.6981,4425.4,4425.3,0.7023]
[1757581917759,0.3929,4425.4,4425.3,0.7023]
[1757581918065,32.9539,4425.8,4425.7,0.7023]
[1757581918264,33.2753,4425.8,4425.7,0.7023]
[1757581920762,0.1972,4425.8,4425.7,1.10891]
[1757581920968,0.9453,4426.2,4426.1,0.7023]
[1757581921861,0.9453,4426.2,4425.1,0.295]
[1757581922060,0.3929,4425.2,4425.1,0.4958]
[1757581922257,0.7143,4425.2,4425.1,0.4958]
[1757581922453,0.7143,4425.2,4425.1,0.7023]
[1757581924757,0.124,4426.0,4425.1,0.4073]
[1757581924964,0.1972,4425.3,4425.2,0.7023]
[1757581925263,0.7143,4425.3,4425.2,0.7023]
[1757581926668,0.7143,4425.3,4425.0,0.295]
[1757581927064,0.7143,4425.3,4424.6,0.295]
[1757581927464,0.61889,4425.3,4424.0,0.128]
[1757581927670,0.106,4425.4,4424.0,0.128]
[1757581927671,0.3214,4425.2,4424.2,0.295]
[1757581927872,0.7143,4424.3,4424.2,0.4958]
[1757581928175,0.7143,4424.3,4424.2,0.7023]
[1757581929269,0.3929,4424.3,4424.2,0.7023]
[1757581930161,0.3929,4424.2,4424.1,0.7023]
[1757581930763,0.1972,4424.2,4424.1,0.7023]
[1757581930964,1.21061428,4426.4,4424.2,0.295]
[1757581930965,0.3214,4424.9,4424.2,0.295]
[1757581931165,0.1972,4424.9,4424.8,0.7023]
[1757581931762,32.552,4426.1,4425.0,0.128]
[1757581931965,0.1972,4425.2,4425.1,0.7023]
[1757581934575,0.3929,4425.2,4425.1,0.7023]
[1757581935280,0.7143,4425.2,4425.1,0.7023]
[1757581940977,0.7143,4425.6,4425.5,0.4073]
[1757581941182,1.57119819,4425.6,4425.5,0.7023]
[1757581941383,1.57119819,4425.6,4425.5,0.295]
[1757581941680,1.57119819,4425.6,4425.1,0.295]
[1757581941880,0.1972,4425.2,4425.1,0.7023]
[1757581942081,32.552,4426.1,4425.2,0.40666]
[1757581942082,0.3214,4425.9,4425.2,0.40666]
[1757581942282,1.5713495,4425.8,4425.7,0.4958]
[1757581942771,1.5713495,4425.8,4425.1,0.295]
[1757581942974,0.7143,4425.2,4425.1,0.295]
[1757581943174,0.7143,4425.2,4425.1,0.4958]
[1757581943577,0.7143,4425.2,4425.1,0.7023]
[1757581944882,1.34169984,4425.2,4425.1,0.7023]
[1757581945989,0.23,4425.6,4425.1,0.4073]
[1757581946185,1.34192834,4425.5,4425.4,0.7023]
[1757581946492,1.46592834,4425.5,4425.1,0.295]
[1757581946686,0.7143,4425.2,4425.1,0.4958]
[1757581947975,0.7143,4425.2,4425.1,0.295]
[1757581948180,0.7143,4425.2,4425.1,0.5061]
[1757581948991,0.7143,4425.2,4425.1,0.295]
[1757581949489,0.3929,4425.2,4424.6,0.71411]
[1757581949690,0.3078,4425.1,4424.7,0.3074]
[1757581949990,0.722,4424.8,4424.7,0.7134]
[1757581950690,0.4142,4424.8,4424.7,0.7134]
[1757581950988,0.722,4424.8,4424.7,0.5185]
[1757581951289,1.34965955,4424.8,4424.1,0.3074]
[1757581951486,0.722,4424.8,4424.1,0.3074]
[1757581952484,0.4142,4424.2,4424.1,0.3074]
[1757581952687,0.722,4424.2,4424.1,0.5185]
[1757581953784,0.3078,4425.0,4424.2,0.3074]
[1757581953985,1.27157679,4424.9,4424.8,0.7134]
[1757581954193,1.57937679,4424.9,4424.8,0.7134]
[1757581958593,1.27157679,4424.9,4424.8,0.7134]
[1757581958798,1.04157679,4424.9,4424.8,0.7134]
[1757581959385,1.04144444,4424.9,4424.8,0.7134]
[1757581960490,1.34924444,4424.9,4424.8,0.7134]
[1757581963596,0.62724444,4424.9,4424.8,1.1201]
[1757581963900,0.952,4425.5,4425.4,0.7134]
[1757581964099,1.57974003,4425.5,4425.4,0.7134]
[1757581965500,1.34974003,4425.5,4425.4,0.7134]
[1757581966101,1.34974003,4425.5,4425.4,0.5185]
[1757581966296,1.34974003,4425.5,4425.4,0.3074]
[1757581966499,5.69971003,4425.5,4424.6,0.3074]
[1757581966700,0.722,4424.7,4424.6,0.5185]
[1757581972304,0.2097,4424.7,4424.6,0.7134]
[1757581973106,0.3078,4425.0,4424.6,0.406]
[1757581973307,0.2097,4424.9,4424.8,0.7134]
[1757581974408,0.722,4424.9,4424.8,0.7134]
[1757581975011,0.4142,4424.9,4424.8,0.7134]
[1757581975615,0.722,4424.9,4424.8,0.7134]
[1757581975915,0.2097,4424.9,4424.8,0.7134]
[1757581977423,0.7251,4424.9,4424.8,0.7134]
[1757581977721,1.35256973,4424.9,4424.8,0.7134]
[1757581978423,1.03216973,4424.9,4424.8,0.7134]
[1757581978723,0.3204,4425.6,4424.9,0.3134]
[1757581978921,0.1983,4425.0,4424.9,0.7126]
[1757581981526,0.7137,4425.0,4424.9,0.7126]
[1757581981821,0.7137,4425.0,4424.5,0.1188]
[1757581981822,0.7833,4425.0,4424.6,0.3134]
[1757581982013,0.62746816,4424.9,4424.6,0.3134]
[1757581982213,0.7137,4424.7,4424.6,0.3134]
[1757581982424,1.34116816,4424.7,4424.6,0.5179]
[1757581982727,1.34116816,4424.7,4424.6,0.7126]
[1757581983430,1.02076816,4424.7,4424.6,0.7126]
[1757581984324,1.34116816,4424.7,4424.6,0.7126]
[1757581985725,1.34116816,4424.7,4424.1,0.3134]
[1757581985916,0.7137,4424.7,4424.1,0.3134]
[1757581986616,0.7137,4424.7,4424.6,0.7126]
[1757581986924,1.34110957,4424.7,4424.6,0.7126]
[1757581989432,1.34110957,4424.7,4424.6,0.5179]
[1757581990326,1.34110957,4424.7,4424.0,0.3134]
[1757581990529,1.34110957,4424.7,4423.0,0.3474]
[1757581990530,0.7137,4424.1,4423.0,0.1174]
[1757581990823,0.7137,4423.2,4423.1,0.7126]
[1757581995031,0.3933,4423.2,4423.1,0.7126]
[1757581995325,0.3204,4423.9,4423.2,0.3134]
[1757581995626,0.7137,4423.9,4423.8,0.7126]
[1757581997929,0.7137,4423.9,4423.5,0.1174]
[1757581998132,0.3933,4423.9,4423.5,0.1174]
[1757581998328,0.7137,4423.7,4423.6,0.5179]
[1757581998831,0.7137,4423.7,4423.6,0.7126]
[1757582000131,0.7137,4423.7,4423.6,0.5179]
[1757582001133,0.7137,4423.7,4423.6,0.7126]
[1757582001327,0.3933,4423.7,4423.6,0.7126]
[1757582002327,0.7137,4423.7,4423.6,0.7126]
[1757582004135,0.1983,4423.7,4423.6,0.7126]
[1757582004330,0.7137,4423.7,4423.6,0.3992]
[1757582004531,0.3933,4423.7,4423.6,0.3992]
[1757582004738,0.7137,4423.7,4423.6,0.5179]
[1757582004933,0.7137,4423.7,4423.1,0.3134]
[1757582005133,0.1983,4423.2,4423.1,0.93867]
[1757582005336,0.1983,4423.2,4423.1,0.7126]
[1757582006640,0.118,4424.0,4423.2,0.3134]
[1757582006945,0.7137,4423.9,4423.8,0.5179]
[1757582008443,0.7137,4423.9,4423.8,0.3134]
[1757582008939,0.7137,4423.9,4423.6,0.297]
[1757582009340,0.7137,4423.9,4423.5,0.1174]
[1757582009535,0.7137,4423.9,4423.6,0.297]
[1757582009742,0.3036,4423.9,4423.7,0.5014]
[1757582009944,0.2099,4423.2,4423.1,0.6971]
[1757582010141,0.7261,4423.2,4423.1,0.6971]
[1757582010942,0.7261,4423.2,4422.5,0.1174]
[1757582011144,0.7261,4423.2,4422.6,0.297]
[1757582014341,0.7261,4423.2,4423.1,0.4001]
[1757582014540,0.4225,4423.2,4423.1,0.6971]
[1757582014744,0.2099,4423.2,4423.1,0.6971]
[1757582016045,0.7261,4423.2,4422.5,0.1174]
[1757582016352,0.7261,4423.2,4422.6,0.297]
[1757582019662,0.7261,4423.2,4423.1,0.2044]
[1757582019864,0.7261,4423.2,4423.1,0.5014]
[1757582020165,1.35660843,4423.2,4423.1,0.5014]
[1757582021764,1.35660843,4423.2,4423.1,0.297]
[1757582022263,1.35660843,4423.2,4423.1,0.5014]
[1757582022560,0.84040843,4423.2,4423.1,0.6971]
[1757582022966,0.2099,4423.2,4423.1,0.6971]
[1757582023259,0.7261,4423.2,4423.1,0.6971]
[1757582023667,0.3036,4423.9,4423.2,0.297]
[1757582023859,1.58470108,4423.8,4423.7,0.5014]
[1757582026161,1.58470108,4423.8,4423.7,0.297]
[1757582027562,1.35570108,4423.8,4423.7,0.297]
[1757582027764,1.58470108,4423.8,4423.7,0.5014]
[1757582029870,1.58470108,4423.8,4423.1,0.297]
[1757582030072,0.7261,4423.2,4423.1,0.5014]
[1757582030471,0.7261,4423.2,4423.1,0.6971]
[1757582032373,1.35595332,4423.2,4423.1,0.6971]
[1757582034171,1.35595332,4423.2,4423.1,0.297]
[1757582034469,1.35595332,4423.2,4422.6,0.297]
[1757582034678,0.2099,4422.7,4422.6,0.6971]
[1757582035173,0.4225,4422.7,4422.6,0.6971]
[1757582035367,0.7261,4422.7,4422.6,0.6971]
[1757582036669,0.4225,4422.7,4422.6,0.6971]
[1757582036874,0.7261,4422.7,4422.6,0.6971]
[1757582037172,0.4225,4423.7,4423.6,0.2044]
[1757582037369,0.9733,4423.7,4423.6,0.5187]
[1757582037568,1.60343309,4423.7,4423.1,0.3143]
[1757582037772,0.7387,4423.2,4423.1,0.7345]
[1757582037973,1.36883309,4423.2,4423.1,0.7345]
[1757582039173,0.84453309,4423.2,4423.1,0.7345]
[1757582039679,1.04703309,4423.2,4423.1,0.7345]
[1757582039871,1.36883309,4423.2,4423.1,0.7345]
[1757582040372,1.04703309,4423.2,4423.1,0.7345]
[1757582040576,0.63013309,4423.2,4423.1,0.7345]
[1757582040778,0.229,4423.6,4423.5,0.854]
[1757582040973,1.59823,4423.6,4423.5,0.854]
[1757582042779,1.59823,4423.6,4423.5,0.7345]
[1757582043181,1.59823,4423.6,4423.5,0.854]
[1757582043673,0.4169,4423.2,4423.1,0.3143]
[1757582043875,0.7387,4423.2,4423.1,0.3143]
[1757582044071,0.1237,4424.0,4423.1,0.7345]
[1757582044277,0.3218,4423.8,4423.2,0.3143]
[1757582044478,1.04739207,4423.7,4423.6,0.2135]
[1757582044781,1.36919207,4423.7,4423.6,0.5278]
[1757582045173,1.59819207,4423.7,4423.6,0.7345]
[1757582046574,1.59819207,4423.7,4423.6,0.5278]
[1757582046984,1.59819207,4423.7,4423.1,0.3143]
[1757582047180,0.7387,4423.2,4423.1,0.7345]
[1757582047580,0.4169,4423.2,4423.1,0.7345]
[1757582050178,0.7387,4423.2,4423.1,0.7345]
[1757582051404,0.4169,4423.2,4423.1,0.7345]
[1757582051775,0.7387,4423.2,4423.1,0.7345]
[1757582053488,1.37205215,4423.2,4423.1,0.7345]
[1757582053877,1.37205215,4423.2,4423.1,0.5278]
[1757582054090,1.37205215,4423.2,4422.6,0.3143]
[1757582054290,0.2144,4422.7,4422.6,0.7345]
[1757582055283,0.3218,4423.0,4422.7,0.3143]
[1757582055690,0.7387,4423.0,4422.9,0.7345]
[1757582055890,1.37213728,4423.0,4422.9,0.7345]
[1757582056192,1.05033728,4423.0,4422.9,0.7345]
[1757582056892,1.37213728,4423.0,4422.9,0.7345]
[1757582057092,1.05033728,4423.0,4422.9,0.7345]
[1757582057788,1.37213728,4423.0,4422.9,0.7345]
[1757582063899,1.44173728,4423.0,4422.6,0.3143]
[1757582064091,0.4169,4423.0,4422.9,0.5278]
[1757582064398,1.05057246,4423.0,4422.9,0.5278]
[1757582064597,1.37237246,4423.0,4422.9,0.5278]
[1757582064991,0.63367246,4423.0,4422.1,0.40694]
[1757582065191,0.63367246,4422.9,4422.2,0.22610999]
[1757582065400,0.229,4423.1,4422.2,0.22610999]
[1757582065698,0.63369505,4423.0,4422.3,0.22610999]
[1757582065898,0.63369505,4422.9,4422.3,0.22610999]
[1757582066100,0.229,4423.1,4422.4,0.0866]
[1757582066292,0.63374391,4423.0,4422.4,0.0866]
[1757582066493,0.63374391,4422.9,4422.4,0.0866]
[1757582066794,0.229,4423.1,4422.4,0.0866]
[1757582066995,0.86274491,4423.0,4422.4,0.0866]
[1757582067197,0.63374491,4422.9,4422.4,0.0866]
[1757582067393,0.229,4423.0,4422.4,0.0866]
[1757582067594,0.6337958,4422.9,4422.4,0.0866]
[1757582067900,0.229,4423.0,4422.4,0.0866]
[1757582068201,0.63379691,4422.9,4422.4,0.0866]
[1757582068402,0.229,4423.0,4422.4,0.49351]
[1757582068702,0.6337768,4422.9,4422.4,0.49351]
[1757582068895,0.229,4423.0,4422.5,0.1084]
[1757582069094,0.63378181,4422.9,4422.5,0.1084]
[1757582069297,0.229,4423.0,4422.5,0.1084]
[1757582069494,0.63375951,4422.9,4422.5,0.1084]
[1757582069703,0.229,4423.0,4422.5,0.1084]
[1757582069904,0.63375751,4422.9,4422.5,0.1084]
[1757582070108,0.4213,4422.9,4422.8,0.5319]
[1757582070299,1.05504651,4422.9,4422.8,0.3184]
[1757582070499,1.36604651,4422.9,4422.8,0.3184]
[1757582070699,1.36604651,4422.9,4422.8,0.5152]
[1757582071605,1.36604651,4422.9,4422.6,0.3184]
[1757582071807,0.7323,4422.9,4422.6,0.3184]
[1757582072300,0.7323,4422.9,4422.5,0.1084]
[1757582072507,0.7323,4422.9,4422.5,0.2368]
[1757582072698,0.7323,4422.9,4422.6,0.3184]
[1757582073196,0.7323,4422.9,4422.5,0.2368]
[1757582073401,0.4213,4422.9,4422.8,0.1968]
[1757582073704,1.05506451,4422.9,4422.8,0.7167]
[1757582074906,1.36606451,4422.9,4422.8,0.7167]
[1757582075708,1.36606451,4422.9,4422.8,0.5152]
[1757582076206,1.36609035,4422.9,4422.8,0.5152]
[1757582076899,1.36609035,4422.9,4422.8,0.3184]
[1757582077406,1.36609035,4422.9,4422.8,0.5152]
[1757582080410,1.36609035,4422.9,4422.6,0.3184]
[1757582080613,0.4056,4422.7,4422.5,0.1084]
[1757582080905,0.7166,4422.6,4422.5,0.3983]
[1757582081110,0.7166,4422.6,4422.5,0.5267]
[1757582081312,0.7166,4422.6,4422.5,0.7167]
[1757582081508,1.35060071,4422.6,4422.5,0.3184]
[1757582081999,1.35060071,4422.6,4422.4,0.0866]
[1757582082203,1.45980071,4422.5,4422.4,0.0866]
[1757582082401,1.57860071,4422.5,4422.4,0.6018]
[1757582082709,1.57860071,4422.5,4422.4,0.7167]
[1757582082905,1.35060071,4422.5,4422.4,0.7167]
[1757582083105,1.57860071,4422.5,4422.4,0.7167]
[1757582083614,0.9446,4422.5,4422.4,0.7167]
[1757582083909,1.57887366,4422.5,4422.4,0.7167]
[1757582085114,1.57887366,4422.5,4422.4,0.3184]
[1757582085515,1.68807366,4422.5,4422.2,0.3184]
[1757582085713,0.7166,4422.3,4422.2,0.3184]
[1757582085915,1.35087366,4422.3,4422.2,0.3184]
[1757582087821,1.35087366,4422.3,4422.2,0.5152]
[1757582088321,1.35087366,4422.3,4422.2,0.3184]
[1757582088522,1.35087366,4422.3,4422.2,0.5152]
[1757582088925,1.35087366,4422.3,4421.6,0.3184]
[1757582089119,0.1987,4421.7,4421.6,0.62445]
[1757582089315,0.7166,4421.7,4421.6,0.7167]
[1757582089619,0.311,4422.4,4421.7,0.3184]
[1757582089824,0.7166,4422.2,4422.1,0.5152]
[1757582098635,1.3502413,4422.2,4422.1,0.3184]
[1757582098834,1.3502413,4422.2,4422.1,0.5252]
[1757582099421,0.7166,4422.2,4422.1,0.7204]
[1757582100829,0.4056,4422.2,4422.1,0.7204]
[1757582101037,0.7211,4422.2,4422.1,0.7204]
[1757582102242,1.35475674,4422.2,4422.1,0.7204]
[1757582103539,1.35475674,4422.2,4422.0,0.3833]
[1757582103738,0.63368493,4422.1,4422.0,0.3833]
[1757582103938,1.34928493,4422.1,4422.0,0.5901]
[1757582106249,1.34928493,4422.1,4422.0,0.0871]
[1757582106545,1.34928493,4422.1,4422.0,0.5901]
[1757582110343,1.53842732,4422.1,4422.0,0.5901]
[1757582112850,1.53842732,4422.1,4422.0,0.7853]
[1757582113051,1.53842732,4422.1,4422.0,0.0871]
[1757582114246,1.76642732,4422.1,4422.0,0.0871]
[1757582114453,1.76642732,4422.1,4422.0,0.3833]
[1757582114641,1.76642732,4422.1,4422.0,0.5901]
[1757582116352,0.82282732,4422.1,4422.0,0.9112]
[1757582116549,0.63368493,4422.1,4422.0,0.9112]
[1757582117350,0.02762215,4918.2,4422.1,0.2962]
[1757582117351,1.52611428,4423.1,4422.1,0.2962]
[1757582117656,0.93319204,4423.0,4422.9,0.6982]
[1757582117849,0.744,4423.0,4422.9,0.6982]
[1757582119655,0.228,4423.0,4422.9,0.6982]
[1757582119855,32.576,4423.8,4422.9,0.402]
[1757582120161,1.1326095,4423.4,4423.3,0.6982]
[1757582120658,0.9436,4423.4,4423.3,0.6982]
[1757582120860,0.744,4423.4,4423.3,0.6982]
[1757582121153,0.516,4423.4,4423.3,0.6982]
[1757582121456,0.516,4423.4,4423.0,0.2342]
[1757582121457,0.744,4423.5,4423.4,0.6982]
[1757582122258,1.0703,4423.5,4423.0,0.1083]
[1757582122556,1.0703,4423.5,4423.4,0.2068]
[1757582122751,1.0703,4423.5,4423.4,0.503]
[1757582123652,1.0703,4423.5,4423.4,0.6982]
[1757582123858,0.9436,4423.5,4423.4,0.6982]
[1757582124559,0.1092,4424.0,4423.5,0.1259]
[1757582124764,0.516,4423.9,4423.8,0.6982]
[1757582125663,0.744,4423.9,4423.8,0.6982]
[1757582128270,0.516,4423.9,4423.8,0.6982]
[1757582128567,0.7156,4423.9,4423.8,0.6982]
[1757582129359,0.516,4423.9,4423.8,0.6982]
[1757582130270,0.52,4424.4,4424.3,0.7089]
[1757582131266,0.228,4424.6,4424.4,0.2957]
[1757582131467,0.748,4424.6,4424.5,0.4132]
[1757582131669,0.748,4424.6,4424.5,0.7089]
[1757582131869,0.52,4424.6,4424.5,0.7089]
[1757582132062,0.52,4424.6,4424.5,0.8306]
[1757582132063,0.3106,4424.6,4424.5,0.8306]
[1757582132371,0.52,4424.6,4424.5,0.8306]
[1757582132572,0.52,4424.6,4424.5,0.7089]
[1757582135369,0.7167,4424.6,4424.5,0.7089]
[1757582140578,0.7167,4424.6,4424.2,0.2957]
[1757582140774,0.7167,4424.3,4423.0,0.64105]
[1757582140980,0.8338,4424.0,4423.9,0.4996]
[1757582141272,0.8338,4424.0,4423.9,0.7089]
[1757582141468,0.7167,4424.0,4423.9,0.7089]
[1757582141869,0.52,4424.0,4423.9,0.7089]
[1757582142064,0.1171,4424.5,4423.9,0.7089]
[1757582142269,0.52,4424.5,4424.4,0.7089]
[1757582143667,0.1092,4425.0,4424.0,0.1217]
[1757582143668,0.7167,4424.9,4424.8,0.505]
[1757582143867,0.7167,4424.9,4424.8,0.7089]
[1757582144669,0.52,4424.9,4424.8,0.7089]
[1757582145869,0.7167,4424.9,4424.8,0.7089]
[1757582146063,0.7167,4424.9,4424.8,0.2039]
[1757582146370,0.7167,4424.9,4424.0,0.1217]
[1757582146570,0.7167,4424.9,4424.1,0.2957]
[1757582146768,0.7167,4424.9,4424.8,0.2039]
[1757582147664,0.7167,4424.9,4424.6,0.2957]
[1757582147868,0.7167,4424.3,4424.2,0.4996]
[1757582148573,0.7167,4424.3,4424.2,0.2039]
[1757582148874,0.7167,4424.3,4424.0,0.2957]
[1757582151767,0.7167,4424.3,4424.1,0.0881]
[1757582152374,1.04508582,4424.2,4424.1,0.292]
[1757582152580,1.35568582,4424.2,4424.1,0.5877]
[1757582152783,1.15898582,4424.2,4424.1,0.797]
[1757582153080,1.35568582,4424.2,4424.1,0.797]
[1757582153480,1.35568582,4424.2,4424.1,0.5013]
[1757582153777,1.35568582,4424.2,4424.1,0.797]
[1757582153974,1.35568582,4424.2,4424.1,0.3838]
[1757582154173,0.2094,4423.2,4423.1,0.7089]
[1757582154378,0.7167,4423.2,4423.1,0.7089]
[1757582156486,0.7167,4423.2,4423.1,0.2039]
[1757582156874,0.1171,4423.5,4422.8,0.4996]
[1757582156875,0.7167,4422.9,4422.8,0.4996]
[1757582157080,0.7167,4422.9,4422.8,0.2039]
[1757582157474,0.7167,4422.9,4422.5,0.3181]
[1757582159080,0.7167,4422.9,4422.8,0.1966]
[1757582159471,0.7167,4422.9,4422.8,0.1083]
[1757582159880,0.7167,4422.9,4422.8,0.8326]
[1757582168187,0.52,4422.9,4422.8,0.8326]
[1757582168583,0.7262,4422.9,4422.8,0.8326]
[1757582170291,0.7262,4422.9,4422.8,0.5145]
[1757582170489,0.7262,4422.9,4422.8,0.8326]
[1757582172787,0.1171,4423.5,4422.8,0.8326]
[1757582173091,0.7221,4423.4,4423.3,0.7243]
[1757582173290,0.7221,4423.4,4423.3,0.4062]
[1757582173590,0.7221,4423.4,4423.3,0.1966]
[1757582174286,0.7221,4423.4,4423.3,0.5147]
[1757582175291,0.7221,4423.4,4423.3,0.1966]
[1757582178093,0.7221,4423.4,4423.1,0.3181]
[1757582178290,0.5239,4423.0,4422.9,0.1966]
[1757582178494,0.8413,4423.0,4422.8,0.1083]
[1757582184209,0.64029427,4422.9,4422.8,0.1083]
[1757582184403,1.04499427,4422.9,4422.8,0.1083]
[1757582184605,1.36239427,4422.9,4422.8,0.1083]
[1757582185709,1.36239427,4422.9,4422.8,0.8326]
[1757582187813,1.36239427,4422.9,4422.8,0.5145]
[1757582188615,1.36239427,4422.9,4422.8,0.815]
[1757582188815,1.15619427,4422.9,4422.8,0.815]
[1757582189208,0.7147,4423.4,4423.3,0.7162]
[1757582189409,1.35539245,4423.4,4423.3,0.7162]
[1757582190615,1.35539245,4423.4,4423.3,0.2113]
[1757582191719,1.35539245,4423.4,4423.3,0.5118]
[1757582192514,1.35539245,4423.4,4423.3,0.2113]
[1757582197526,1.35539245,4423.4,4423.3,0.7162]
[1757582199625,1.14579245,4423.4,4423.3,0.7162]
[1757582201223,1.35539245,4423.4,4423.3,0.7162]
[1757582201528,1.14579245,4423.4,4423.3,0.7162]
[1757582202328,0.5051,4423.4,4423.3,0.7162]
[1757582203230,0.7147,4423.9,4423.8,0.7162]
[1757582207337,0.7147,4423.9,4423.8,0.4157]
[1757582208625,0.7147,4423.9,4423.8,0.2113]
[1757582212533,0.7147,4423.2,4423.1,0.2113]
[1757582213027,0.1164,4423.0,4422.9,0.5118]
[1757582213233,0.8311,4423.0,4422.9,0.5118]
[1757582213420,0.8311,4423.0,4422.9,0.2113]
[1757582214431,0.8311,4423.0,4422.1,0.3005]
[1757582214632,0.8311,4423.0,4422.2,0.63302999]
[1757582214833,0.2074,4422.4,4422.3,0.7162]
[1757582215032,0.5051,4422.4,4422.3,1.12311]
[1757582215236,0.5051,4422.4,4422.3,4.00181614]
[1757582215623,0.5051,4422.4,4422.3,4.11001614]
[1757582217641,0.5051,4422.4,4422.3,3.70310614]
[1757582218635,0.5051,4422.4,4422.3,4.11001614]
[1757582219239,0.5051,4422.4,4422.3,3.70310614]
[1757582219641,0.7147,4422.4,4422.3,0.8244]
[1757582220039,0.7147,4422.4,4422.3,1.23131]
[1757582220235,0.5051,4422.4,4422.3,1.23131]
[1757582220629,0.2977,4422.4,4422.3,1.23131]
[1757582221740,0.2977,4422.4,4422.3,0.8244]
[1757582222435,0.5018,4422.4,4422.3,0.8244]
[1757582222935,0.7079,4422.4,4422.3,0.8244]
[1757582223435,0.5018,4422.4,4422.3,0.8244]
[1757582223737,0.1164,4423.0,4422.4,0.3056]
[1757582223931,0.1164,4423.0,4422.3,0.93081]
[1757582223932,0.5266,4423.0,4422.9,0.2105]
[1757582224444,0.8255,4423.0,4422.9,0.2105]
[1757582226042,0.8255,4423.0,4422.9,0.5161]
[1757582227536,0.503,4423.0,4422.9,0.7157]
[1757582227733,0.3205,4423.5,4423.4,0.2105]
[1757582227936,0.8255,4423.5,4423.4,0.2105]
[1757582229834,0.8255,4423.5,4423.4,0.5161]
[1757582231345,0.2989,4423.5,4423.4,0.8238]
[1757582232146,0.7091,4423.5,4423.4,0.8238]
[1757582232338,0.8333,4423.5,4423.4,0.1081]
[1757582232743,0.2041,4422.6,4422.5,0.5161]
[1757582232946,0.7091,4422.6,4422.5,0.5161]
[1757582233147,0.7091,4422.6,4422.5,0.7157]
[1757582236953,0.2041,4422.6,4422.5,0.8419]
[1757582237158,0.2989,4422.8,4422.5,0.5363]
[1757582237355,0.2041,4422.9,4422.8,0.1996]
[1757582237654,0.7091,4422.9,4422.8,0.7157]
[1757582241960,0.7091,4422.9,4422.8,0.2105]
[1757582242356,1.35532753,4422.9,4422.8,0.5161]
[1757582242565,1.35532753,4422.9,4422.8,0.2105]
[1757582242869,1.35532753,4422.9,4422.1,0.3056]
[1757582243069,1.35532753,4422.8,4422.7,0.1996]
[1757582243270,1.35532753,4422.8,4422.7,0.7157]
[1757582244475,0.85032753,4422.8,4422.7,0.7157]
[1757582244677,0.64622753,4422.8,4422.7,0.7157]
[1757582245277,0.94512753,4422.8,4422.7,0.7157]
[1757582245466,1.14922753,4422.8,4422.7,0.7157]
[1757582247477,1.35532753,4422.8,4422.7,0.7157]
[1757582252379,0.7091,4422.8,4422.7,0.7157]
[1757582262074,1.35568797,4422.8,4422.7,0.7157]
[1757582263578,0.64658797,4422.8,4422.7,0.7157]
[1757582263882,0.2068,4422.9,4422.8,0.7374]
[1757582264074,1.15181375,4422.9,4422.8,0.7374]
[1757582266687,0.65101375,4422.9,4422.8,0.7374]
[1757582266884,1.15181375,4422.9,4422.8,0.7374]
[1757582267788,1.34961375,4422.9,4422.8,0.7374]
[1757582267985,1.34961375,4422.9,4422.8,0.2091]
[1757582268375,1.34961375,4422.9,4422.6,0.3208]
[1757582268579,0.6986,4422.9,4422.1,0.3208]
[1757582268779,0.294,4422.8,4422.2,0.3208]
[1757582268979,0.6986,4422.8,4422.7,0.2091]
[1757582269180,0.6986,4422.8,4422.7,0.5299]
[1757582270387,1.34931105,4422.8,4422.7,0.5299]
[1757582272992,1.34931105,4422.8,4421.5,0.5338]
[1757582272993,0.5008,4421.6,4421.5,0.5338]
[1757582273192,0.6986,4421.6,4421.5,0.4166]
[1757582273384,0.6986,4421.6,4421.5,3.21392654]
[1757582273583,1.34861606,4421.6,4421.5,0.2091]
[1757582273784,1.34861606,4421.6,4421.5,0.5299]
[1757582274196,0.6986,4421.6,4421.5,0.5299]